Cogmind - Beta 10.2 @@@ ROGUE MODE // 2021.06.12 @ 18:32:50 Player: puncake Result: Destroyed by B-86 Titan with Hardcell Cannon Performance ------------- Evolutions (6) 3000 Regions Visited (15) 3000 Robots Destroyed (137) 685 Value Destroyed (5505) 5505 Prototype IDs (5) 100 Alien Tech Used (0) 0 Bonus (246) 246 TOTAL SCORE: 12536 Bonus ------- Follower Combat Kills 176 Aligned with FarCom 300 Friendly Fire -230 Cogmind --------- Core Integrity 0/1150 Matter 293/300 Energy 98/100 System Corruption 5% Temperature Cool (9) Movement Core (50) Location -4/Factory Parts ------- > --- POWER (2) -------- (None) > --- PROPULSION (4) --- (None) > --- UTILITY (10) ----- Targeting Computer Improved Launcher Guidance Computer Target Analyzer Hacking Suite > --- WEAPON (3) ------- (None) > --- INVENTORY (4) ---- Advanced Thermal Shield Improved Remote Datajack Peak State ------------ > --- POWER ------------ Micro Fission Core Particle Reactor > --- PROPULSION ------- Medium Treads Medium Treads Flexi-carbon Leg Flexi-carbon Leg > --- UTILITY ---------- Advanced Heat Sink Coolant Injector Improved Coolant Injector Medium Storage Unit Advanced Weight Redist. System Transport Network Coupler Targeting Computer Improved Launcher Guidance Computer Target Analyzer Phase Shifter > --- WEAPON ----------- Improved Heavy Laser Autogun Railgun > --- INVENTORY -------- Micro Fission Core Tesla Rifle Disruptor Cannon Heavy Assault Rifle Gauss Rifle Hypervelocity Gauss Cannon Improved Remote Datajack [Rating: 85] Favorites ----------- Power Light Angular Momentum Engine Engine Light Angular Momentum Engine Power Core Micro Fission Core Reactor Particle Reactor Propulsion Armored Leg Treads Medium Treads Leg Armored Leg Wheel Wheel Utility Medium Storage Unit Device Transmission Jammer Storage Medium Storage Unit Processor Target Analyzer Hackware Improved System Shield Protection Improved Light Armor Plating Weapon Neutron Cannon Energy Gun Wave Gun Energy Cannon Neutron Cannon Ballistic Gun Light Assault Rifle Ballistic Cannon Mass Driver Launcher Heavy Missile Launcher Impact Weapon Powered Hammer Build | -11 -10 -10 -10 -9 -8 -7 -6 -6 -6 -5 -5 -5 -5 -5 -4 ------- Run | Scr Mat Min Exi Min Mat Fac Fac Low Low Fac Ext Cet Arc Hub Fac Slots Evolved 12 | . . . . . 4 2 2 . . 2 . . . . 2 Power 1 | . . . . . . . . . . . . . . . 1 Propulsion 2 | . . . . . 2 . . . . . . . . . . Utility 8 | . . . . . 2 2 2 . . 1 . . . . 1 Weapon 1 | . . . . . . . . . . 1 . . . . . Parts Attached 189 | 5 2 . 1 . 16 6 20 4 1 11 56 26 6 17 18 Power 20 | 1 . . . . 1 1 2 1 . . 5 4 . 3 2 Engine 10 | 1 . . . . 1 1 2 1 . . 2 1 . 1 . Core 8 | . . . . . . . . . . . 3 3 . 1 1 Reactor 2 | . . . . . . . . . . . . . . 1 1 Propulsion 43 | 2 . . . . 5 . 4 1 . 1 18 6 1 4 1 Treads 9 | . . . . . 1 . 1 . . . 1 2 1 2 1 Leg 27 | . . . . . 4 . 3 1 . 1 13 3 . 2 . Wheel 7 | 2 . . . . . . . . . . 4 1 . . . Hover . | . . . . . . . . . . . . . . . . Flight . | . . . . . . . . . . . . . . . . Utility 41 | . 2 . 1 . 3 2 6 . . 4 10 5 . 5 3 Device 22 | . . . 1 . 1 1 3 . . 2 7 2 . 4 1 Storage 4 | . 1 . . . . . . . . 1 2 . . . . Processor 11 | . 1 . . . 2 . 1 . . 1 1 3 . 1 1 Hackware 2 | . . . . . . . 1 . . . . . . . 1 Protection 2 | . . . . . . 1 1 . . . . . . . . Artifact . | . . . . . . . . . . . . . . . . Weapon 85 | 2 . . . . 7 3 8 2 1 6 23 11 5 5 12 Energy Gun 20 | . . . . . 1 1 . . . 1 10 4 . 1 2 Energy Cannon 18 | . . . . . 2 1 3 . . 2 5 . . 1 4 Ballistic Gun 32 | 2 . . . . 3 . 4 . 1 2 5 4 5 3 3 Ballistic Cannon 8 | . . . . . 1 1 1 1 . 1 . 2 . . 1 Launcher 5 | . . . . . . . . 1 . . 3 1 . . . Special Weapon . | . . . . . . . . . . . . . . . . Impact Weapon 2 | . . . . . . . . . . . . . . . 2 Slashing Weapon . | . . . . . . . . . . . . . . . . Piercing Weapon . | . . . . . . . . . . . . . . . . Special Melee Weapon . | . . . . . . . . . . . . . . . . Unidentified Prototypes 4 | . . . 1 . 1 . . . . . . 1 . 1 . Parts Lost 108 | . . . . . 5 1 10 1 . 2 33 25 2 7 22 Power 14 | . . . . . 1 . 2 1 . . 4 4 . 1 1 Propulsion 30 | . . . . . 3 . 3 . . . 10 6 1 2 5 Utility 23 | . . . . . . . 3 . . 1 6 5 . 2 6 Weapon 41 | . . . . . 1 1 2 . . 1 13 10 1 2 10 Highest Loss Streak 12 | . . . . . 2 1 3 1 . 1 12 10 1 7 11 Average Slot Usage (%) 94 | . 83 100 100 100 98 99 92 94 100 99 97 81 87 86 70 Engine 4 | . 14 14 14 14 9 7 5 6 6 5 1 . . . . Core 1 | . . . . . . . . . . . 3 4 5 4 3 Treads 4 | . . . . . 2 7 6 6 6 5 1 7 6 11 4 Leg 14 | . . . . . 19 23 15 14 20 17 15 4 9 6 6 Wheel 4 | . 28 28 28 28 13 . . . . . 3 . . . . Device 21 | . . . 10 14 17 23 25 20 20 21 24 28 17 20 13 Storage 6 | . 10 14 14 14 9 7 6 6 6 6 5 5 5 5 3 Processor 12 | . 1 14 3 . 8 7 6 13 13 11 16 10 23 17 19 Hackware 2 | . . . . . . . 2 6 6 5 3 . . . 1 Protection 2 | . . . . . . 7 6 6 6 4 . . . . . Energy Gun 2 | . . . . . . 1 . . . . 4 7 . 1 4 Energy Cannon 4 | . . . . . 5 7 5 7 . 8 4 . . . 1 Ballistic Gun 5 | . 28 28 28 28 7 1 5 . 6 1 2 3 16 15 5 Ballistic Cannon 2 | . . . . . 4 2 2 3 6 5 3 1 . . . Naked Turns . | . . . . . . . . . . . . . . . . Heaviest Build 52 | 5 13 13 14 14 23 39 46 44 34 51 48 38 31 43 52 Greatest Support 117 | 20 20 20 20 20 35 35 47 52 52 52 72 117 108 117 70 Greatest Overweight (x) 7 | . . . . . 1 1 1 2 . . 3 1 . . 7 Average Overweight (x) . | . . . . . . . . . . . . . . . . Largest Inventory Capacity 8 | 4 8 8 8 8 8 8 8 8 8 8 8 8 8 8 8 Average Capacity 7 | 4 6 8 8 8 8 8 8 8 8 8 8 8 8 8 6 Most Carried 8 | 4 6 8 8 8 8 8 8 8 8 8 8 8 8 8 8 Average Carried 7 | 2 4 7 8 8 7 7 7 7 7 7 7 6 6 6 5 Final Capacity 8 | 4 8 8 8 8 8 8 8 8 8 8 8 8 8 8 4 Final Carried 8 | 4 6 8 8 8 8 8 8 8 8 7 8 7 7 8 2 Class Distribution -------------------- 28% | Skirmisher 25% | Scavenger-Skirmisher 18% | Mutant 14% | Scavenger-Gunner 11% | Gunner Dominant Class ---------------- Mutant | -10/Materials Mutant | -10/Mines Mutant | -10/Exiles Mutant | -9/Mines Skirmisher | -8/Materials Skirmisher | -7/Factory Skirmisher | -6/Factory Mutant | -6/Lower Caves Mutant | -6/Lower Caves Gunner | -5/Factory Scavenger-Skirmisher | -5/Extension Scavenger-Skirmisher | -5/Cetus Scavenger-Gunner | -5/Archives Scavenger-Gunner | -5/Hub_04(d) Scavenger-Gunner | -4/Factory Resources | -11 -10 -10 -10 -9 -8 -7 -6 -6 -6 -5 -5 -5 -5 -5 -4 ----------- Run | Scr Mat Min Exi Min Mat Fac Fac Low Low Fac Ext Cet Arc Hub Fac Matter Collected 4389 | 256 28 10 . . 286 154 200 241 76 211 1308 574 226 402 417 Remotely . | . . . . . . . . . . . . . . . . Salvage Created 6784 | 48 53 44 . . 493 193 282 60 96 513 2873 584 393 603 549 Parts 275 | 2 2 6 . . 27 5 17 1 . 16 88 32 11 34 34 Haulers Intercepted 9 | . 1 . . . 1 . . . . 1 5 . . 1 . Recyclers Shooed 5 | . . . . . . . 1 . . . 1 . . 3 . Parts Field Recycled . | . . . . . . . . . . . . . . . . Retrieved Matter . | . . . . . . . . . . . . . . . . Parts Self-Destructed 5 | . . . . . . . . . 5 . . . . . . Prevented 2 | . . . . . . . . 2 . . . . . . . Kills | -11 -10 -10 -10 -9 -8 -7 -6 -6 -6 -5 -5 -5 -5 -5 -4 ------- Run | Scr Mat Min Exi Min Mat Fac Fac Low Low Fac Ext Cet Arc Hub Fac Combat Hostiles Destroyed 107 | 1 . 3 . . 16 2 8 2 . 9 23 21 4 6 12 Guns 51 | 1 . 3 . . 5 1 4 . . . 6 12 4 6 9 Cannons 41 | . . . . . 11 1 4 1 . 8 9 4 . . 3 AOE 12 | . . . . . . . . 1 . 1 5 5 . . . Classes Destroyed 12 | 1 1 1 . . 2 2 . . . 1 4 . . . . Worker 6 | . . . . . . . . . . 1 2 . . 3 . Builder 3 | . . . . . . . . . . . 2 . . . 1 Hauler 9 | . 1 . . . 1 . . . . 1 5 . . 1 . Recycler 10 | . . . . . . 1 . . . . 8 . . 1 . Watcher 1 | . . . . . . . . . . . 1 . . . . Swarmer 39 | . . 3 . . 8 . 4 2 . . 5 12 . . 5 Grunt 25 | 1 . . . . 6 . . . . 3 7 3 . 2 3 Brawler 1 | . . . . . . . . . . . 1 . . . . Sentry 15 | . . . . . 1 1 1 . . 1 6 . 4 1 . Hunter 8 | . . . . . 1 . . . . 1 2 3 . 1 . Programmer 14 | . . . . . . 1 3 . . 4 . . . 2 4 Behemoth 2 | . . . . . . . . . . . 2 . . . . Cetus Guard 3 | . . . . . . . . . . . . 3 . . . Thug 1 | . . . . . . . . . . . . 1 . . . Best Kill Streak 8 | 1 1 3 . . 4 2 2 1 . 3 5 8 1 6 4 Combat Bots Only 8 | 1 . 3 . . 4 1 2 1 . 2 5 8 1 3 4 Max Kills in Single Turn 5 | 1 1 1 . . 1 1 2 1 . 2 5 4 1 2 1 Gunslinging 1 | . . . . . . . . . . . . 1 . . . Exploded 5 | . . . . . . . . 1 . 1 5 4 . . . Melee . | . . . . . . . . . . . . . . . . Uniques/NPCs Destroyed . | . . . . . . . . . . . . . . . . Combat | -11 -10 -10 -10 -9 -8 -7 -6 -6 -6 -5 -5 -5 -5 -5 -4 -------- Run | Scr Mat Min Exi Min Mat Fac Fac Low Low Fac Ext Cet Arc Hub Fac Damage Taken 15667 | 31 . 84 . . 868 202 1097 453 . 810 4195 2670 468 1143 3646 Core 2387 | . . 39 . . 103 29 130 46 . 81 331 317 112 38 1161 Absorbed by Shields . | . . . . . . . . . . . . . . . . Reduced by Siege Mode 117 | . . . . . . . . . . . . 32 37 27 21 Core Remaining (%) 75 | 100 . . . 84 81 95 . . 79 . . . . 12 . Volleys Fired 399 | 3 4 5 . . 56 8 46 11 6 25 119 39 14 25 38 Largest 3 | 2 2 2 . . 2 2 2 2 2 3 3 3 3 3 3 Hottest 243 | 40 40 40 . . 99 116 155 155 76 237 243 200 98 123 169 Shots Fired 895 | 6 8 10 . . 111 16 92 18 12 75 248 90 39 67 103 Gun 569 | 6 8 10 . . 52 3 56 . 6 28 149 62 39 67 83 Cannon 312 | . . . . . 59 13 36 14 6 47 96 21 . . 20 Launcher 14 | . . . . . . . . 4 . . 3 7 . . . Special . | . . . . . . . . . . . . . . . . Kinetic 551 | 6 8 10 . . 86 5 69 . 12 48 93 48 39 64 63 Thermal 194 | . . . . . 25 11 23 14 . 21 50 35 . 3 12 Explosive 7 | . . . . . . . . . . . . 7 . . . Electromagnetic 143 | . . . . . . . . 4 . 6 105 . . . 28 Robot Hit Streak 32 | 3 4 5 . . 14 5 8 9 12 14 12 17 31 32 14 Robot Miss Streak 9 | 1 1 4 . . 4 2 7 5 5 9 3 5 1 2 2 Penetration Max 1 | . . . . . . . . . . 1 1 . 1 1 1 Secondary Targets 6 | . . 1 . . . . . . . . . 4 . 1 . Max Gunslinging Chain 2 | . . 1 . . . . . . . . . 2 . 1 . Shots Hit Robots 611 | 4 7 5 . . 72 12 50 6 11 43 180 60 31 50 80 Core Hits 284 | 2 2 5 . . 33 5 15 3 6 24 78 44 14 24 29 Critical Hits 42 | . 1 . . . 2 1 2 . . 7 9 6 2 3 9 Critical Kills 20 | . . . . . . . . . . 5 4 4 2 2 3 Critical Parts Destroyed 20 | . 1 . . . 2 1 2 . . 2 3 2 . 1 6 Melee Attacks 11 | . . . . . . . . . . . . . . . 11 Impact 11 | . . . . . . . . . . . . . . . 11 Slashing . | . . . . . . . . . . . . . . . . Piercing . | . . . . . . . . . . . . . . . . Sneak Attacks . | . . . . . . . . . . . . . . . . Combat Hostiles . | . . . . . . . . . . . . . . . . Follow-up Attacks 2 | . . . . . . . . . . . . . . . 2 Damage Inflicted 14988 | 40 58 45 . . 1149 301 866 264 168 1578 5128 2304 610 1202 1275 Guns 7237 | 40 58 45 . . 284 58 420 . 114 281 2359 826 610 1202 940 Cannons 5305 | . . . . . 865 243 446 122 54 937 2245 194 . . 199 Explosions 2310 | . . . . . . . . 142 . 360 524 1284 . . . Melee 134 | . . . . . . . . . . . . . . . 134 Ramming 2 | . . . . . . . . . . . . . . . 2 Kinetic 7054 | 40 58 45 . . 753 83 525 . 168 538 1915 368 610 1176 775 Thermal 4241 | . . . . . 396 218 341 122 . 822 1414 652 . 26 250 Explosive 1418 | . . . . . . . . . . 134 . 1284 . . . Electromagnetic 2139 | . . . . . . . . 142 . 84 1799 . . . 114 Impact 134 | . . . . . . . . . . . . . . . 134 Slashing . | . . . . . . . . . . . . . . . . Piercing . | . . . . . . . . . . . . . . . . Highest Corruption 22 | . . . . . . . 1 2 2 5 20 20 20 22 5 Average Corruption 9 | . . . . . . . 1 1 2 1 10 20 20 21 3 Corruption Purged . | . . . . . . . . . . . . . . . . Effects 322 | . . . . . . . 2 4 1 14 164 69 15 43 10 Message Errors 54 | . . . . . . . . 3 1 2 29 8 3 7 1 Matter Fused 42 | . . . . . . . . . . 2 31 4 2 1 2 Heat Flow Errors 20 | . . . . . . . . 1 . . 12 5 . 2 . Energy Discharges 26 | . . . . . . . . . . 1 10 7 3 3 2 Parts Rejected 6 | . . . . . . . . . . . . 2 1 1 2 Data Loss (minor) 33 | . . . . . . . 1 . . 4 14 9 . 5 . Data Loss (major) 9 | . . . . . . . . . . 2 3 3 1 . . Misfires 8 | . . . . . . . . . . 2 4 1 . 1 . Alerts 1 | . . . . . . . . . . . . . . 1 . Misdirections 24 | . . . . . . . . . . . 17 3 . 4 . Targeting Errors 81 | . . . . . . . 1 . . 1 38 23 4 12 2 Weapon Failures 18 | . . . . . . . . . . . 6 4 1 6 1 Overload Shots . | . . . . . . . . . . . . . . . . Overflow Damage 305 | . . . . . 4 . 43 38 39 58 18 105 . . . Projectiles 132 | . . . . . 4 . 26 15 39 30 18 . . . . Explosions 173 | . . . . . . . 17 23 . 28 . 105 . . . Melee . | . . . . . . . . . . . . . . . . Knockbacks 21 | . . . . . 10 . . . 2 1 3 1 . . 4 Impact 1 | . . . . . . . . . . . . . . . 1 Kinetic 18 | . . . . . 8 . . . 2 1 3 1 . . 3 Secondary 2 | . . . . . 2 . . . . . . . . . . Self-Inflicted Damage 427 | . . . . . . . 96 26 . 188 3 114 . . . Shots 8 | . . . . . . . 1 1 . 3 1 2 . . . Rammed 1 | . . . . . . . . . . . . . . . 1 Targets Rammed 1 | . . . . . . . . . . . . . . . 1 Kicked . | . . . . . . . . . . . . . . . . Crushed . | . . . . . . . . . . . . . . . . Highest Temperature 366 | 12 . . . . 135 234 208 200 40 366 357 190 . 120 199 Average Temperature 76 | 7 . . . . 36 90 79 88 21 134 76 61 . 57 84 Received Heat Transfer 2307 | 18 . . . . 198 72 78 . . 81 825 279 63 144 549 Effects 14 | . . . . . . . . . . 9 5 . . . . Energy Bleed 1 | . . . . . . . . . . 1 . . . . . Interference 13 | . . . . . . . . . . 8 5 . . . . Siege Activations 9 | . . . . . . . . . . . . 3 3 2 1 Total Turns 179 | . . . . . . . . . . . . 44 81 52 2 Longest Duration 50 | . . . . . . . . . . . . 16 50 30 2 Robots Corrupted 4 | . . . . . . . . . . . 4 . . . . Combat Hostiles 2 | . . . . . . . . . . . 2 . . . . Parts Fried 9 | . . . . . . . . . . . 9 . . . . Impact Corruptions . | . . . . . . . . . . . . . . . . Robots Melted 1 | . . . . . . . . . . . 1 . . . . Combat Hostiles 1 | . . . . . . . . . . . 1 . . . . Parts Melted 3 | . . . . . . 1 . . . . 1 1 . . . Heat Transferred 4993 | . . . . . 666 333 420 187 . 500 1479 1038 . 37 333 Parts Sabotaged . | . . . . . . . . . . . . . . . . Parts Stolen 2 | . . . . . . . . 2 . . . . . . . Parts Stripped . | . . . . . . . . . . . . . . . . Power Chain Reactions 6 | . . . . . . . . . . . 6 . . . . Missiles Intercepted . | . . . . . . . . . . . . . . . . Alert | -11 -10 -10 -10 -9 -8 -7 -6 -6 -6 -5 -5 -5 -5 -5 -4 ------- Run | Scr Mat Min Exi Min Mat Fac Fac Low Low Fac Ext Cet Arc Hub Fac Peak Influence 377 | 20 20 92 . . 226 95 139 . . 170 348 377 229 272 220 Initial 194 | . 13 7 . . . 60 . . . 2 54 194 90 79 49 Average 86 | 3 14 83 . . 80 39 69 . . 52 90 148 173 160 112 Maximum Alert Level 1 | . . . . . 1 . . . . . 1 1 1 1 1 Low Security (%) 92 | 100 100 100 . 100 89 100 100 . . 100 97 68 50 61 98 Level 1 7 | . . . . . 10 . . . . . 2 31 49 38 1 Level 2 . | . . . . . . . . . . . . . . . . Level 3 . | . . . . . . . . . . . . . . . . Level 4 . | . . . . . . . . . . . . . . . . Level 5 . | . . . . . . . . . . . . . . . . High Security . | . . . . . . . . . . . . . . . . Max Security . | . . . . . . . . . . . . . . . . Squads Dispatched 14 | . . . . . 2 1 2 . . 4 2 . . 1 2 Investigation 2 | . . . . . 2 . . . . . . . . . . Extermination 5 | . . . . . . 1 1 . . 2 . . . . 1 Reinforcement 6 | . . . . . . . 1 . . 2 2 . . . 1 Assault . | . . . . . . . . . . . . . . . . Garrison 1 | . . . . . . . . . . . . . . 1 . Intercept . | . . . . . . . . . . . . . . . . Construction Impeded 2 | . . . . . . . . . . 1 . . . . 1 Haulers Reinforced 1 | . . . . . . . . . . 1 . . . . . Stealth | -11 -10 -10 -10 -9 -8 -7 -6 -6 -6 -5 -5 -5 -5 -5 -4 --------- Run | Scr Mat Min Exi Min Mat Fac Fac Low Low Fac Ext Cet Arc Hub Fac Distress Signals 14 | . . . . . 3 . 2 . . 1 4 1 . 3 . Communications Jammed 49 | . . . . . . . 24 . . 1 24 . . . . Distress Signals 49 | . . . . . . . 24 . . 1 24 . . . . Times Spotted 196 | 1 . 3 . . 25 2 11 7 . 13 50 30 6 12 36 Peak Tracking Total 13 | 1 . 3 . . 5 1 5 3 . 2 9 9 1 7 13 Tactical Retreats 17 | . . . . . 3 . . . . 1 6 3 . . 4 Traps | -11 -10 -10 -10 -9 -8 -7 -6 -6 -6 -5 -5 -5 -5 -5 -4 ------- Run | Scr Mat Min Exi Min Mat Fac Fac Low Low Fac Ext Cet Arc Hub Fac Traps Triggered 6 | . . . . . 2 1 . . . 1 2 . . . . Indirectly . | . . . . . . . . . . . . . . . . Trap Hack Attempts . | . . . . . . . . . . . . . . . . Triggered . | . . . . . . . . . . . . . . . . Disarmed . | . . . . . . . . . . . . . . . . Reprogrammed . | . . . . . . . . . . . . . . . . Reused . | . . . . . . . . . . . . . . . . Traps Extracted . | . . . . . . . . . . . . . . . . Installed . | . . . . . . . . . . . . . . . . Triggered 1 | . . . . . . . . 1 . . . . . . . Machines | -11 -10 -10 -10 -9 -8 -7 -6 -6 -6 -5 -5 -5 -5 -5 -4 ---------- Run | Scr Mat Min Exi Min Mat Fac Fac Low Low Fac Ext Cet Arc Hub Fac Machines Disabled 14 | . . . . . . . 1 . . 4 3 3 2 1 . Max in Single Turn 2 | . . . . . . . 1 . . 2 1 2 1 1 . Machines Sabotaged . | . . . . . . . . . . . . . . . . Garrisons Compromised . | . . . . . . . . . . . . . . . . Overloaded Fab Kills . | . . . . . . . . . . . . . . . . Fab Network Shutdowns . | . . . . . . . . . . . . . . . . Hacking | -11 -10 -10 -10 -9 -8 -7 -6 -6 -6 -5 -5 -5 -5 -5 -4 --------- Run | Scr Mat Min Exi Min Mat Fac Fac Low Low Fac Ext Cet Arc Hub Fac Machines Accessed 26 | . . . 4 . 7 2 . . . 2 8 3 . . . Terminals 22 | . . . . . 7 2 . . . 2 8 3 . . . Fabricators . | . . . . . . . . . . . . . . . . Repair Stations . | . . . . . . . . . . . . . . . . Recycling Units . | . . . . . . . . . . . . . . . . Scanalyzers . | . . . . . . . . . . . . . . . . Garrison Access . | . . . . . . . . . . . . . . . . Total Hacks 89 | . . . 49 . 10 5 . . . 2 18 5 . . . Successful 64 | . . . 49 . 6 2 . . . 1 4 2 . . . Failed 25 | . . . . . 4 3 . . . 1 14 3 . . . Catastrophic 6 | . . . . . 1 1 . . . . 2 2 . . . Database Lockouts . | . . . . . . . . . . . . . . . . Manual 17 | . . . 1 . 6 4 . . . 2 3 1 . . . Terminals 40 | . . . . . 10 5 . . . 2 18 5 . . . Fabricators . | . . . . . . . . . . . . . . . . Repair Stations . | . . . . . . . . . . . . . . . . Recycling Units . | . . . . . . . . . . . . . . . . Scanalyzers . | . . . . . . . . . . . . . . . . Garrison Access . | . . . . . . . . . . . . . . . . Terminal Hacks 62 | . . . 49 . 4 2 . . . 1 4 2 . . . Record 51 | . . . 49 . . . . . . . . 2 . . . Open Door 5 | . . . . . . . . . . 1 4 . . . . Branch Access Points 2 | . . . . . 1 1 . . . . . . . . . Emergency Access Points 1 | . . . . . 1 . . . . . . . . . . Alert Level 1 | . . . . . 1 . . . . . . . . . . Locate Traps 1 | . . . . . 1 . . . . . . . . . . Zone Layout 1 | . . . . . . 1 . . . . . . . . . Fabricator Hacks . | . . . . . . . . . . . . . . . . Repair Station Hacks . | . . . . . . . . . . . . . . . . Recycling Unit Hacks . | . . . . . . . . . . . . . . . . Scanalyzer . | . . . . . . . . . . . . . . . . Garrison Access Hacks . | . . . . . . . . . . . . . . . . Unauthorized Hacks 2 | . . . . . 2 . . . . . . . . . . Terminals 2 | . . . . . 2 . . . . . . . . . . Track 2 | . . . . . 2 . . . . . . . . . . Fabricators . | . . . . . . . . . . . . . . . . Repair Stations . | . . . . . . . . . . . . . . . . Recycling Units . | . . . . . . . . . . . . . . . . Scanalyzers . | . . . . . . . . . . . . . . . . Garrison Access . | . . . . . . . . . . . . . . . . Data Cores Recovered . | . . . . . . . . . . . . . . . . Used . | . . . . . . . . . . . . . . . . Hacking Detections 16 | . . . . . 7 1 . . . 1 5 2 . . . Full Trace Events . | . . . . . . . . . . . . . . . . Feedback Events . | . . . . . . . . . . . . . . . . Feedback Blocked . | . . . . . . . . . . . . . . . . Robot Schematics Acquired . | . . . . . . . . . . . . . . . . Robots Built . | . . . . . . . . . . . . . . . . Matter . | . . . . . . . . . . . . . . . . Time . | . . . . . . . . . . . . . . . . Total Robot Build Rating . | . . . . . . . . . . . . . . . . Part Schematics Acquired . | . . . . . . . . . . . . . . . . Parts Built . | . . . . . . . . . . . . . . . . Matter . | . . . . . . . . . . . . . . . . Time . | . . . . . . . . . . . . . . . . Total Part Build Rating . | . . . . . . . . . . . . . . . . Parts Repaired . | . . . . . . . . . . . . . . . . Time . | . . . . . . . . . . . . . . . . Parts Recycled . | . . . . . . . . . . . . . . . . Recycled Matter . | . . . . . . . . . . . . . . . . Retrieved Matter . | . . . . . . . . . . . . . . . . Retrieved Components . | . . . . . . . . . . . . . . . . Parts Scanalyzed . | . . . . . . . . . . . . . . . . Part Schematics Acquired . | . . . . . . . . . . . . . . . . Parts Damaged . | . . . . . . . . . . . . . . . . Bothacking | -11 -10 -10 -10 -9 -8 -7 -6 -6 -6 -5 -5 -5 -5 -5 -4 ------------ Run | Scr Mat Min Exi Min Mat Fac Fac Low Low Fac Ext Cet Arc Hub Fac Used RIF Installer . | . . . . . . . . . . . . . . . . Robots Hacked . | . . . . . . . . . . . . . . . . Non-combat . | . . . . . . . . . . . . . . . . Combat . | . . . . . . . . . . . . . . . . Robot Hacks Applied . | . . . . . . . . . . . . . . . . Relay Couplers Released . | . . . . . . . . . . . . . . . . Robots Rewired 20 | . . . . . . . . . . . 20 . . . . Allies Hacked . | . . . . . . . . . . . . . . . . Hacks Repelled . | . . . . . . . . . . . . . . . . Allies | -11 -10 -10 -10 -9 -8 -7 -6 -6 -6 -5 -5 -5 -5 -5 -4 -------- Run | Scr Mat Min Exi Min Mat Fac Fac Low Low Fac Ext Cet Arc Hub Fac Total Allies 26 | . . . . . . . . . . . 26 . . . . Largest Group 8 | . . . . . . . . . . . 8 8 . . . Highest-Rated Group 238 | . . . . . . . . . . . 238 238 . . . Highest-Rated Ally 37 | . . . . . . . . . . . 37 37 . . . Total Orders 6 | . . . 2 2 . . 2 . . . . . . . . EXPLORE 4 | . . . 1 1 . . 2 . . . . . . . . RETURN 2 | . . . 1 1 . . . . . . . . . . . Ally Attacks 79 | . . . . . . . . . . . 57 22 . . . Total Damage 1392 | . . . . . . . . . . . 932 460 . . . Kills 6 | . . . . . . . . . . . 6 . . . . Allies Corrupted . | . . . . . . . . . . . . . . . . Allies Melted . | . . . . . . . . . . . . . . . . Intel | -11 -10 -10 -10 -9 -8 -7 -6 -6 -6 -5 -5 -5 -5 -5 -4 ------- Run | Scr Mat Min Exi Min Mat Fac Fac Low Low Fac Ext Cet Arc Hub Fac Robot Analysis Total . | . . . . . . . . . . . . . . . . Derelict Logs Recovered 3 | . . . . 1 . . . 2 . . . . . . . Drone Launches 4 | . . . 1 1 . . 2 . . . . . . . . Drone Recoveries 3 | . . . 1 1 . . 1 . . . . . . . . Exploration | -11 -10 -10 -10 -9 -8 -7 -6 -6 -6 -5 -5 -5 -5 -5 -4 ------------- Run | Scr Mat Min Exi Min Mat Fac Fac Low Low Fac Ext Cet Arc Hub Fac Turns Passed 11774 | 74 81 95 626 29 1266 920 528 757 119 1992 3100 836 254 477 620 Spaces Moved 6494 | 67 80 97 777 32 670 511 190 496 81 964 1641 257 95 220 316 Core 176 | 22 . . . . . . . . . . . . . . 154 Treads 267 | . . . . . . . 17 . . . . 105 36 92 17 Legs 4049 | . . . . . 171 511 173 496 81 964 1189 132 59 128 145 Wheels 2002 | 45 80 97 777 32 499 . . . . . 452 20 . . . Hover . | . . . . . . . . . . . . . . . . Flight . | . . . . . . . . . . . . . . . . Fastest Speed 50 | 50 80 80 80 80 80 120 120 120 126 123 90 100 120 120 50 Average Speed 114 | 70 80 80 80 80 92 139 148 144 126 123 116 140 135 136 96 Slowest Speed 400 | 80 80 80 80 80 120 150 180 180 126 126 150 160 160 160 400 Overloaded Moves . | . . . . . . . . . . . . . . . . Propulsion Burnouts . | . . . . . . . . . . . . . . . . Robots Hopped . | . . . . . . . . . . . . . . . . Cave-ins Triggered 1 | . . . . . . . . . . . 1 . . . . Exploration Rate (%) 38 | 8 16 30 95 19 37 13 38 72 11 21 85 62 76 20 12 Regions Visited 15 Branch Regions 9 Pre-discovered Areas 1 | . . . 1 . . . . . . . . . . . . Known Exits Taken . | . . . . . . . . . . . . . . . . Unknown Exits Taken 15 | 1 1 1 1 1 1 1 1 1 1 1 1 1 1 1 . Scrap Searched 4 | . . 1 . 1 . . . 2 . . . . . . . Spaces Dug . | . . . . . . . . . . . . . . . . Terrain Destroyed 218 | . . . . . 5 1 19 9 3 86 25 57 3 8 2 Melee . | . . . . . . . . . . . . . . . . Projectile 72 | . . . . . 5 1 3 9 3 16 18 4 3 8 2 AOE 146 | . . . . . . . 16 . . 70 7 53 . . . Terrain Rammed . | . . . . . . . . . . . . . . . . Walls Destroyed . | . . . . . . . . . . . . . . . . Machines Disabled . | . . . . . . . . . . . . . . . . Actions | -11 -10 -10 -10 -9 -8 -7 -6 -6 -6 -5 -5 -5 -5 -5 -4 --------- Run | Scr Mat Min Exi Min Mat Fac Fac Low Low Fac Ext Cet Arc Hub Fac Total 10123 | 88 89 106 781 35 1215 704 371 520 88 1722 2660 664 193 342 545 Wait 2681 | 6 1 3 3 4 462 162 102 7 . 706 648 321 73 63 120 Move 6479 | 66 79 96 776 31 669 510 189 495 80 963 1640 256 94 219 316 Hop . | . . . . . . . . . . . . . . . . Pick Up 140 | 8 3 2 . . 10 7 9 2 1 9 43 22 4 12 8 Fast Attach 35 | 1 1 . 1 . 1 2 7 1 . 1 13 2 . 4 1 Attach 106 | 4 1 . . . 10 3 7 1 1 4 27 23 3 8 14 Detach 3 | . . . . . 1 . . . . . 1 . . . 1 Swap 48 | . . . . . 5 1 6 2 . 6 16 1 3 5 3 Drop 59 | . . . 1 . 1 6 5 1 . 8 24 . 2 6 5 Fire 399 | 3 4 5 . . 56 8 46 11 6 25 119 39 14 25 38 Melee 9 | . . . . . . . . . . . . . . . 9 Ram 1 | . . . . . . . . . . . 1 . . . . Kick . | . . . . . . . . . . . . . . . . Crush 1 | . . . . . . . . . . . . . . . 1 Escape Stasis 15 | . . . . . . 5 . . . . 10 . . . . Rewire 147 | . . . . . . . . . . . 118 . . . 29 Trap . | . . . . . . . . . . . . . . . . Miscellaneous . | . . . . . . . . . . . . . . . . Route ------- -11/Scrapyard -10/Materials -10/Mines -10/Exiles (discovered 2 exits: [*Min x2]) -9/Mines (discovered 2 exits: *Mat x2) -8/Materials (discovered 2 exits: *Fac / Sto) -7/Factory (discovered 3 exits: [*Fac] / Low x2) -6/Factory (discovered 4 exits: *Fac x2 / [*Low x2]) -6/Lower Caves -6/Lower Caves -5/Factory (discovered 2 exits: Upp / *Ext) -5/Extension (discovered 2 exits: [*Fac] / *Cet) -5/Cetus -5/Archives -5/Hub_04(d) -4/Factory History --------- Turn | Location | Event 2 | -11/Scrapyard | Met Revision 17 51 | -11/Scrapyard | Discovered new exit (range 8) 75 | -11/Scrapyard | Entered Materials 102 | -10/Materials | Discovered new exit (range 12) 156 | -10/Materials | Entered Mines 248 | -10/Mines | Deemed a non-threat by the Exiles lab entrance 248 | -10/Mines | Discovered new exit (range 5) 251 | -10/Mines | Entered Exiles 272 | -10/Exiles | Met 8R-AWN 285 | -10/Exiles | Met EX-HEX 303 | -10/Exiles | Build established: Mutant 339 | -10/Exiles | Met EX-BIN 349 | -10/Exiles | Aligned with FarCom system 350 | -10/Exiles | Given EX-Vault access code 397 | -10/Exiles | Opened EX-Vault 407 | -10/Exiles | Found Prototype Device 407 | -10/Exiles | Identified Supersonic Drone Bay 412 | -10/Exiles | Discovered new exit (range 55) 431 | -10/Exiles | Warned to stay clear of 0b10 Research branches 457 | -10/Exiles | Met EX-DEC 480 | -10/Exiles | Learned location of Zion (-7) 610 | -10/Exiles | Visited The Gauntlet 775 | -10/Exiles | Discovered new exit (range 14) 877 | -10/Exiles | Left Exiles lab with Supersonic Drone Bay 877 | -10/Exiles | Entered Mines 882 | -9/Mines | Discovered new exit (range 14) 883 | -9/Mines | Discovered new exit (range 30) 894 | -9/Mines | Learned location of 1 exit from Materials 906 | -9/Mines | Entered Materials 906 | -8/Materials | Evolved 4 slots: Propulsion x2, Utility x2 907 | -8/Materials | Identified exit to Storage 1238 | -8/Materials | Build established: Skirmisher 2160 | -8/Materials | Discovered new exit (range 11) 2172 | -8/Materials | Entered Factory 2172 | -7/Factory | Evolved 2 slots: Utility x2 2855 | -7/Factory | Identified exit to Lower Caves 3074 | -7/Factory | Discovered new exit (range 13) 3092 | -7/Factory | Entered another Factory area 3092 | -6/Factory | Evolved 2 slots: Utility x2 3123 | -6/Factory | Discovered new exit (range 46) 3129 | -6/Factory | Discovered new exit (range 48) 3134 | -6/Factory | Discovered new exit (range 143) 3140 | -6/Factory | Discovered new exit (range 91) 3245 | -6/Factory | Lost 3 parts (1p1u1w) 3620 | -6/Factory | Entered Lower Caves 3654 | -6/Lower Caves | Carbon-fiber Leg stolen by Master Thief 3755 | -6/Lower Caves | Build established: Mutant 3996 | -6/Lower Caves | Encountered a Warlord checkpoint 4346 | -6/Lower Caves | Discovered new exit (range 15) 4362 | -6/Lower Caves | Hvy. Plasma Cannon stolen by Master Thief 4366 | -6/Lower Caves | Learned Factory machine intel 4377 | -6/Lower Caves | Entered another Lower Caves area 4451 | -6/Lower Caves | Discovered new exit (range 10) 4496 | -6/Lower Caves | Entered Factory 4496 | -5/Factory | Evolved 2 slots: Utility x1, Weapon x1 4497 | -5/Factory | Identified exit to Upper Caves 4498 | -5/Factory | Loaded intel: 247 machine locations 5103 | -5/Factory | Build established: Gunner 6483 | -5/Factory | Discovered new exit (range 6) 6488 | -5/Factory | Entered Extension 6509 | -5/Extension | Build established: Skirmisher 6615 | -5/Extension | Spotted B-75 Beast 7379 | -5/Extension | Build established: Scavenger-Skirmisher 7453 | -5/Extension | Rescued a captive Derelict 7557 | -5/Extension | Spotted B-75 Beast 7638 | -5/Extension | Disrupted transfer network 7690 | -5/Extension | Lost 4 parts (2n2w) 7701 | -5/Extension | Destroyed B-75 Beast 7781 | -5/Extension | Lost 6 parts (1p2n2u1w) 8478 | -5/Extension | Crushed by falling debris 8478 | -5/Extension | System corruption reached 10% 8544 | -5/Extension | Lost 12 parts (4n4u4w) 8953 | -5/Extension | Destroyed B-75 Beast 8963 | -5/Extension | Lost 3 parts (1n2w) 9121 | -5/Extension | Rescued a captive Derelict 9122 | -5/Extension | Rescued a captive Derelict 9147 | -5/Extension | Rescued a captive Derelict 9149 | -5/Extension | Rescued a captive Derelict 9482 | -5/Extension | Rescued a captive Derelict 9509 | -5/Extension | Discovered new exit (range 10) 9511 | -5/Extension | Discovered new exit (range 6) 9588 | -5/Extension | Entered Cetus 9588 | -5/Cetus | Accompanied by 8 allies 9599 | -5/Cetus | Spotted Cetus Guard 9599 | -5/Cetus | Spotted Cetus Guard 9599 | -5/Cetus | Spotted Cetus Guard 9599 | -5/Cetus | Spotted Cetus Guard 9633 | -5/Cetus | Core integrity fell below 50% 9633 | -5/Cetus | Destroyed Cetus Guard 9652 | -5/Cetus | Destroyed Cetus Guard 9657 | -5/Cetus | Destroyed Cetus Guard 9685 | -5/Cetus | Lost 8 parts (4n1u3w) 10109 | -5/Cetus | Destroyed 7 combat bots 10118 | -5/Cetus | Lost 10 parts (3p1n2u4w) 10330 | -5/Cetus | Destroyed 8 combat bots 10336 | -5/Cetus | Lost 7 parts (1p1n2u3w) 10406 | -5/Cetus | Discovered new exit (range 15) 10424 | -5/Cetus | Entered Archives 10527 | -5/Archives | Core integrity fell below 20% 10599 | -5/Archives | Unable to access archive contents 10613 | -5/Archives | Build established: Scavenger-Gunner 10628 | -5/Archives | Unable to access archive contents 10646 | -5/Archives | Discovered new exit (range 15) 10678 | -5/Archives | Entered Hub_04(d) 10842 | -5/Hub_04(d) | Garrison activated, responded to threat 10951 | -5/Hub_04(d) | Lost 7 parts (1p2n2u2w) 11139 | -5/Hub_04(d) | Discovered new exit (range 4) 11155 | -5/Hub_04(d) | Entered Factory 11155 | -4/Factory | Evolved 2 slots: Power x1, Utility x1 11324 | -4/Factory | Lost 3 parts (1n2u) 11602 | -4/Factory | Lost 11 parts (1p3n3u4w) 11669 | -4/Factory | Lost 6 parts (1u5w) 11724 | -4/Factory | Core integrity fell below 50% 11752 | -4/Factory | Core integrity fell below 20% 11775 | -4/Factory | Spotted B-86 Titan 11775 | -4/Factory | Destroyed by B-86 Titan with Hardcell Cannon Last Messages --------------- 11727_ Slammed into S-27 Virus. 11728_ Penetrated by Slug. 11730_ S-27 Virus suffers critical hit. 11731_ S-27 Virus destroyed. 11733_ Penetrated by Slug. 11733_ S-27 Virus destroyed. 11736_ Activated siege mode. 11736_ Slug penetrates Wall. 11736_ Penetrated by Slug. 11736_ Hvy. Disruptor Cannon destroyed. 11739_ Penetrated by Slug. 11739_ S-27 Virus destroyed. 11741_ Slug penetrates Wall. 11741_ Penetrated by Slug. 11741_ Hvy. Treads destroyed. 11742_ Penetrated by Slug. 11744_ Slug penetrates Neutrino Reactor. 11746_ Acquired Adv. Thermal Shield. 11751_ Penetrated by Slug. 11761_ System corrupted: Matter fused (-7). Map ----- +----------------------------------------------------+ | ?????# """ ""????????????????????????? | | ?????# """ """ "?????????????????????? | | ?????# """ """ """???????????????????? | | ?????# ??????????????????? | | ???????????????????? | | ############### ####???????????????????????? | | ?# # #??????????????????????????? | | ?# # #??????????????????????????? | | ?# # #??????????????????????????? | | ?# #s #??????????????????????????? | | ?+ # s #??????????????????????????? | | ?# + + ?????????????????????????? | | ?# # #??????????????????????????? | | ?# # #??????????????????????????? | | ?# # #??????????????????????????? | | ?# # #????????????? ????????????? | | ?# # #???????????? +???????????? | | ?# # #??????????? #???????????? | | ?############## #????+#???? #???????????? | | ??????????????# #?### #### #???????????? | | ??????????????# #?# #???????????? | | ??????????????# #?# #???????????? | | ??????????????# #?# t #???????????? | | ??????????????# #?# #???????????? | | ?????????????## ### ????????????? | | ?????????????# k = @ #??????????????????? | | ?????????????# #??????????????????? | | ?????????????# "" """ ==!#??????????????????? | | ?????????????# "F """ =! #??????????????????? | | ?????????????# """ """ =! #??????????????????? | | ?????????????# """ #??????????????????? | | ?????????????# """ """ #??????????????????? | | ?????????????# """ """ ?????????????????? | | ?????????????# """ """ ????????????????? | | ?????????????# ???????????????? | | ?????????????# ? ?? s????????????? | | ?????????????? #?BB#??? ??????????????? | | ??????????????? ??BB????? s?s???????????? | | ??????????????? ??##?????? ??s?????????????? | | ????????????????? ????????????????????????????? | | ?????????????????????????????????????????????????? | | ?????????????????????????????????????????????????? | | ?????????????????????????????????????????????????? | | ?????????????????????????????????????????????????? | | ?????????????????????????????????????????????????? | | ?????????????????????????????????????????????????? | | ?????????????????????????????????????????????????? | | ?????????????????????????????????????????????????? | | ?????????????????????????????????????????????????? | | ?????????????????????????????????????????????????? | +----------------------------------------------------+ Best States ------------- Heat Dissipation 78 Coolant Potential 145 Energy Generation 36 Energy Capacity 450 Matter Stores 300 Matter Capacity 300 Sight Range 22 Robot Scan Range 20 Terrain Scan Range 16 Terrain Scan Density 110 Jamming Range 8 Additional Mass Support 9 Armor Coverage 375 Weapon Cycling 30 Phase Shifting 5 Evasion (%) 50 Targeting Accuracy 15 Launcher Accuracy 30 Target Analysis 5 Recoil Reduction 4 Offensive Hacking 10 Defensive Hacking 12 Item Schematics ----------------- None Robot Schematics ------------------ None Fabricated ------------ Nothing Alien Tech Used ----------------- None Achievements -------------- A New Friend Hey, That's Mine! It's Just You Let's See Who's Tougher Novice Programmer Omniscient Cartographer Please Form A Line Quick And Dirty The More The Merrier Total Silence Unlikely Earthworm Challenges ------------ None Game ------ Seed OverloadMasterActivator Manual? 0 Play Time 02:07:20 Cumulative 6.1 hours Start 2021.06.12 @ 00:45:58 End 2021.06.12 @ 18:32:50 Sessions 5 Manual Loads 0 Difficulty Rogue Special Mode None Game No. 3 Rogue 3 Adventurer 0 Explorer 0 Win Type - Total 0 Types 0/0/0/0/0/0/0/0/0 Lore% 14 Gallery% 14 Achievement% 14 Wizard Run 0 Options --------- ASCII 1 Keyboard 0 Movement Mouse Keybinds 0 Fullscreen 2 Font 18/X11 Map View 76x50 Tactical HUD 1 Map Filters NONE Filters NONE Steam 1 RUN: 81f8fc60-b6c2-4dda-a129-2932c54492ec